fUST/lending_fUST_20240826
["ID","MTS","AMOUNT","RATE_DAILY","PERIOD"]
[336065474,1724687440592,-500.0,0.00011505,2]
[336065475,1724687440601,-500.0,0.00011505,2]
[336065476,1724687440611,-500.0,0.00011505,2]
[336065477,1724687440620,-500.0,0.00011505,2]
[336065478,1724687440630,-500.0,0.00011505,2]
[336065479,1724687440639,-500.0,0.00011505,2]
[336065480,1724687440648,-500.0,0.00011505,2]
[336065481,1724687440657,-500.0,0.00011505,2]
[336065482,1724687440666,-613.89,0.00011505,2]
[336065483,1724687440676,-500.0,0.00011505,2]
[336065484,1724687440685,-853.82,0.00011505,2]
[336065485,1724687440694,-535.38,0.00011505,2]
[336065486,1724687440703,-239.92305182,0.00011505,2]
[336065487,1724687440712,-500.0,0.00011505,2]
[336065488,1724687440721,-1583.53,0.00011505,2]
[336065489,1724687440734,-500.0,0.00011505,2]
[336065490,1724687440744,-500.0,0.00011505,2]
[336065491,1724687440753,-189.07505538,0.00011505,2]
[336065492,1724687440762,-537.13,0.00011505,2]
[336065493,1724687440772,-500.0,0.00011505,2]
[336065494,1724687440783,-500.0,0.00011505,2]
[336065495,1724687440792,-500.0,0.00011505,2]
[336065496,1724687440802,-500.0,0.00011505,2]
[336065497,1724687440811,-500.0,0.00011505,2]
[336065498,1724687440821,-500.0,0.00011505,2]
[336065499,1724687440830,-500.0,0.00011505,2]
[336065500,1724687440840,-500.0,0.00011505,2]
[336065501,1724687440849,-500.0,0.00011505,2]
[336065502,1724687440859,-511.94,0.00011505,2]
[336065503,1724687440868,-742.18,0.00011505,2]
[336065504,1724687440878,-869.31,0.00011505,2]
[336065505,1724687440887,-547.01,0.00011505,2]
[336065506,1724687440896,-500.0,0.00011505,2]
[336065507,1724687440905,-500.0,0.00011505,2]
[336065508,1724687440915,-512.88,0.00011505,2]
[336065509,1724687440925,-500.0,0.00011505,2]
[336065510,1724687440934,-1044.45,0.00011505,2]
[336065511,1724687440943,-500.0,0.00011505,2]
[336065512,1724687440954,-951.92,0.00011505,2]
[336065513,1724687440964,-225.44,0.00011505,2]
[336065514,1724687440973,-2455.13,0.00011505,2]
[336065515,1724687440983,-520.73490608,0.00011505,2]
[336065516,1724687440992,-500.0,0.00011505,2]
[336065517,1724687441001,-682.62,0.00011505,2]
[336065518,1724687441010,-687.55,0.00011505,2]
[336065519,1724687441019,-500.0,0.00011505,2]
[336065520,1724687441031,-500.0,0.00011505,2]
[336065521,1724687441040,-544.83,0.00011505,2]
[336065522,1724687441049,-500.0,0.00011505,2]
[336065523,1724687441058,-500.52711479,0.00011506,2]
[336065524,1724687441067,-500.0,0.00011506,2]
[336065525,1724687441077,-500.0,0.00011506,2]
[336065526,1724687441086,-500.0,0.00011506,2]
[336065527,1724687441095,-500.0,0.00011506,2]
[336065528,1724687441104,-500.0,0.00011506,2]
[336065529,1724687441113,-500.0,0.00011506,2]
[336065530,1724687441122,-500.0,0.00011506,2]
[336065531,1724687441131,-500.0,0.00011506,2]
[336065532,1724687441141,-500.0,0.00011506,2]
[336065533,1724687441150,-847.63,0.00011506,2]
[336065534,1724687441160,-500.0,0.00011506,2]
[336065535,1724687441169,-500.0,0.00011506,2]
[336065536,1724687441183,-500.0,0.00011506,2]
[336065537,1724687441193,-500.0,0.00011506,2]
[336065538,1724687441202,-500.0,0.00011506,2]
[336065539,1724687441212,-500.0,0.00011506,2]
[336065540,1724687441221,-500.0,0.00011506,2]
[336065541,1724687441230,-500.0,0.00011506,2]
[336065542,1724687441239,-233.69523151,0.00011506,2]
[336065543,1724687441249,-500.0,0.00011506,2]
[336065544,1724687441260,-500.0,0.00011506,2]
[336065545,1724687441270,-726.78,0.00011506,2]
[336065546,1724687441283,-500.0,0.00011506,2]
[336065547,1724687441293,-500.0,0.00011506,2]
[336065548,1724687441302,-500.0,0.00011506,2]
[336065549,1724687441312,-500.0,0.00011506,2]
[336065550,1724687441323,-500.0,0.00011506,2]
[336065551,1724687441333,-500.0,0.00011506,2]
[336065552,1724687441343,-500.0,0.00011506,2]
[336065553,1724687441353,-500.0,0.00011506,2]
[336065554,1724687441363,-652.31,0.00011506,2]
[336065555,1724687441372,-500.0,0.00011506,2]
[336065556,1724687441382,-500.0,0.00011506,2]
[336065557,1724687441392,-500.0,0.00011506,2]
[336065558,1724687441402,-500.0,0.00011506,2]
[336065559,1724687441412,-546.98,0.00011506,2]
[336065560,1724687441423,-500.0,0.00011506,2]
[336065561,1724687441634,-500.0,0.00011506,2]
[336065562,1724687441651,-500.0,0.00011506,2]
[336065563,1724687441661,-500.0,0.00011506,2]
[336065564,1724687441670,-500.0,0.00011506,2]
[336065565,1724687441679,-500.0,0.00011506,2]
[336065566,1724687441689,-500.0,0.00011506,2]
[336065567,1724687441699,-669.36,0.00011506,2]
[336065568,1724687441708,-567.92218307,0.00011506,2]
[336065569,1724687441718,-500.0,0.00011506,2]
[336065570,1724687441729,-500.0,0.00011506,2]
[336065571,1724687441739,-500.0,0.00011506,2]
[336065572,1724687441749,-500.0,0.00011506,2]
[336065573,1724687441758,-397.23766357,0.00011506,2]
[336065574,1724687441768,-500.0,0.00011506,2]
[336065575,1724687441778,-248.62317767,0.00011506,2]
[336065576,1724687441788,-500.0,0.00011506,2]
[336065577,1724687441798,-500.0,0.00011506,2]
[336065578,1724687441807,-509.83395918,0.00011506,2]
[336065579,1724687441817,-500.0,0.00011506,2]
[336065580,1724687441829,-500.0,0.00011506,2]
[336065581,1724687441839,-553.22,0.00011506,2]
[336065582,1724687441849,-500.0,0.00011506,2]
[336065583,1724687441860,-515.43,0.00011506,2]
[336065584,1724687441870,-500.0,0.00011506,2]
[336065585,1724687441880,-638.72818631,0.00011506,2]
[336065586,1724687441889,-500.0,0.00011506,2]
[336065587,1724687441899,-514.89,0.00011506,2]
[336065588,1724687441909,-500.0,0.00011506,2]
[336065589,1724687441919,-533.16,0.00011506,2]
[336065590,1724687441931,-500.0,0.00011506,2]
[336065591,1724687441943,-500.0,0.00011506,2]
[336065592,1724687441954,-500.0,0.00011506,2]
[336065593,1724687441966,-500.0,0.00011506,2]
[336065594,1724687441975,-735.45,0.00011506,2]
[336065595,1724687441984,-500.0,0.00011506,2]
[336065596,1724687441994,-500.0,0.00011506,2]
[336065597,1724687442003,-500.0,0.00011506,2]
[336065598,1724687442013,-500.0,0.00011506,2]
[336065599,1724687442024,-500.0,0.00011506,2]
[336065600,1724687442038,-618.63,0.00011506,2]
[336065601,1724687442048,-529.92035407,0.00011506,2]
[336065602,1724687442058,-611.93905636,0.00011506,2]
[336065603,1724687442068,-500.0,0.00011506,2]
[336065604,1724687442087,-500.0,0.00011506,2]
[336065605,1724687442099,-402.25626289,0.00011506,2]
[336065606,1724687442109,-500.0,0.00011506,2]
[336065607,1724687442119,-500.0,0.00011506,2]
[336065608,1724687442129,-500.0,0.00011506,2]
[336065609,1724687442139,-500.0,0.00011506,2]
[336065610,1724687442152,-500.0,0.00011506,2]
[336065611,1724687442164,-500.0,0.00011506,2]
[336065612,1724687442174,-1035.15,0.00011506,2]
[336065613,1724687442184,-500.0,0.00011506,2]
[336065614,1724687442194,-500.0,0.00011506,2]
[336065615,1724687442203,-500.0,0.00011506,2]
[336065616,1724687442214,-500.0,0.00011506,2]
[336065617,1724687442224,-500.0,0.00011506,2]
[336065618,1724687442235,-500.0,0.00011506,2]
[336065619,1724687442247,-500.0,0.00011506,2]
[336065620,1724687442257,-532.3,0.00011506,2]
[336065621,1724687442267,-500.0,0.00011506,2]
[336065622,1724687442282,-500.0,0.00011506,2]
[336065623,1724687442296,-500.0,0.00011506,2]
[336065625,1724687442306,-500.0,0.00011506,2]
[336065626,1724687442317,-1436.32,0.00011506,2]
[336065629,1724687442328,-749.96,0.00011506,2]
[336065630,1724687442339,-500.0,0.00011506,2]
[336065631,1724687442349,-500.0,0.00011506,2]
[336065632,1724687442360,-500.0,0.00011506,2]
[336065633,1724687442371,-500.0,0.00011506,2]
[336065634,1724687442380,-500.0,0.00011506,2]
[336065635,1724687442390,-500.0,0.00011506,2]
[336065636,1724687442400,-500.0,0.00011506,2]
[336065637,1724687442410,-500.0,0.00011506,2]
[336065638,1724687442420,-500.0,0.00011506,2]
[336065639,1724687442431,-500.0,0.00011506,2]
[336065640,1724687442443,-1010.39,0.00011506,2]
[336065641,1724687442453,-172.21,0.00011506,2]
[336065642,1724687442465,-500.0,0.00011506,2]
[336065643,1724687442475,-500.0,0.00011506,2]
[336065644,1724687442485,-500.0,0.00011506,2]
[336065645,1724687442495,-500.0,0.00011506,2]
[336065647,1724687442505,-519.20049986,0.00011507,2]
[336065648,1724687442516,-500.0,0.00011507,2]
[336065650,1724687442526,-500.0,0.00011507,2]
[336065652,1724687442537,-532.15248975,0.00011507,2]
[336065654,1724687442547,-500.0,0.00011507,2]
[336065656,1724687442557,-500.0,0.00011507,2]
[336065658,1724687442567,-212.56,0.00011507,2]
[336065660,1724687442577,-500.0,0.00011507,2]
[336065662,1724687442587,-500.0,0.00011507,2]
[336065664,1724687442596,-500.0,0.00011507,2]
[336065666,1724687442606,-500.0,0.00011507,2]
[336065668,1724687442615,-500.0,0.00011507,2]
[336065670,1724687442625,-500.0,0.00011507,2]
[336065672,1724687442635,-500.0,0.00011507,2]
[336065673,1724687442644,-500.0,0.00011507,2]
[336065675,1724687442653,-500.0,0.00011507,2]
[336065676,1724687442663,-735.85,0.00011507,2]
[336065677,1724687442672,-778.01,0.00011507,2]
[336065678,1724687442681,-500.0,0.00011507,2]
[336065679,1724687442691,-522.01,0.00011507,2]
[336065680,1724687442700,-500.0,0.00011507,2]
[336065681,1724687442710,-500.0,0.00011507,2]
[336065682,1724687442721,-231.0,0.00011507,2]
[336065683,1724687442730,-500.0,0.00011507,2]
[336065684,1724687442741,-512.32,0.00011507,2]
[336065686,1724687442751,-813.44,0.00011507,2]
[336065688,1724687442761,-500.0,0.00011507,2]
[336065689,1724687442770,-520.7,0.00011507,2]
[336065690,1724687442781,-500.0,0.00011507,2]
[336065691,1724687442791,-500.0,0.00011507,2]
[336065692,1724687442800,-500.0,0.00011507,2]
[336065693,1724687442810,-500.0,0.00011507,2]
[336065694,1724687442820,-500.0,0.00011507,2]
[336065695,1724687442829,-887.23,0.00011507,2]
[336065696,1724687442839,-516.25,0.00011507,2]
[336065697,1724687442849,-525.76,0.00011507,2]
[336065698,1724687442859,-500.0,0.00011507,2]
[336065699,1724687442869,-500.0,0.00011507,2]
[336065700,1724687442879,-227.08342233,0.00011507,2]
[336065701,1724687442889,-525.5,0.00011507,2]
[336065702,1724687442899,-500.0,0.00011507,2]
[336065703,1724687442908,-500.0,0.00011507,2]
[336065704,1724687442918,-466.48,0.00011507,2]
[336065705,1724687442927,-500.0,0.00011507,2]
[336065706,1724687442937,-500.0,0.00011507,2]
[336065707,1724687442947,-500.0,0.00011507,2]
[336065708,1724687442956,-686.23,0.00011507,2]
[336065709,1724687442966,-604.41,0.00011507,2]
[336065710,1724687442976,-610.55,0.00011507,2]
[336065711,1724687442985,-500.0,0.00011508,2]
[336065712,1724687442995,-500.0,0.00011508,2]
[336065713,1724687443005,-500.0,0.00011508,2]
[336065714,1724687443016,-500.0,0.00011508,2]
[336065715,1724687443026,-500.0,0.00011508,2]
[336065716,1724687443036,-500.0,0.00011508,2]
[336065717,1724687443046,-500.0,0.00011508,2]
[336065718,1724687443056,-500.0,0.00011508,2]
[336065719,1724687443066,-500.0,0.00011508,2]
[336065720,1724687443076,-500.0,0.00011508,2]
[336065721,1724687443085,-231.83172877,0.00011508,2]
[336065722,1724687443094,-610.47,0.00011508,2]
[336065723,1724687443104,-520.64470755,0.00011508,2]
[336065724,1724687443114,-514.43343061,0.00011508,2]
[336065725,1724687443123,-500.0,0.00011508,2]
[336065726,1724687443132,-500.0,0.00011508,2]
[336065727,1724687443141,-500.0,0.00011508,2]
[336065729,1724687443151,-742.43,0.00011508,2]
[336065730,1724687443160,-731.43,0.00011508,2]
[336065731,1724687443170,-529.61,0.00011508,2]
[336065732,1724687443179,-500.0,0.00011508,2]
[336065733,1724687443189,-1030.63,0.00011508,2]
[336065734,1724687443198,-656.66,0.00011508,2]
[336065735,1724687443208,-500.0,0.00011508,2]
[336065736,1724687443217,-500.0,0.00011508,2]
[336065737,1724687443226,-500.0,0.00011508,2]
[336065738,1724687443236,-500.0,0.00011508,2]
[336065739,1724687443246,-500.0,0.00011508,2]
[336065740,1724687443255,-500.0,0.00011508,2]
[336065741,1724687443264,-500.0,0.00011508,2]
[336065742,1724687443276,-500.0,0.00011508,2]
[336065743,1724687443287,-500.0,0.00011508,2]
[336065744,1724687443296,-504.2084301,0.00011508,2]
[336065745,1724687443305,-500.0,0.00011508,2]
[336065746,1724687443315,-500.0,0.00011508,2]
[336065747,1724687443324,-500.0,0.00011508,2]
[336065748,1724687443334,-643.11,0.00011508,2]
[336065749,1724687443344,-500.0,0.00011508,2]
[336065750,1724687443355,-500.0,0.00011508,2]
[336065751,1724687443365,-570.88878189,0.00011508,2]
[336065752,1724687443375,-500.0,0.00011508,2]
[336065753,1724687443385,-286.88081606,0.00011508,2]
[336065754,1724687443394,-586.08,0.00011508,2]
[336065755,1724687443404,-506.48378339,0.00011508,2]
[336065756,1724687443414,-500.0,0.00011508,2]
[336065757,1724687443424,-500.0,0.00011508,2]
[336065758,1724687443434,-500.0,0.00011508,2]
[336065759,1724687443443,-500.0,0.00011508,2]
[336065760,1724687443453,-500.0,0.00011508,2]
[336065761,1724687443462,-500.0,0.00011509,2]
[336065762,1724687443471,-500.0,0.00011509,2]
[336065763,1724687443481,-500.0,0.00011509,2]
[336065764,1724687443490,-1057.54478736,0.00011583,2]
[336065765,1724687443500,-156.8958704,0.00011621,2]
[336065766,1724687443509,-500.0,0.00011681,2]
[336065767,1724687443519,-500.0,0.00011682,2]
[336065768,1724687443529,-500.0,0.00011682,2]
[336065769,1724687443538,-500.0,0.00011682,2]
[336065770,1724687443548,-500.0,0.00011682,2]
[336065771,1724687443558,-556.76,0.00011682,2]
[336065772,1724687443567,-646.28,0.00011682,2]
[336065773,1724687443577,-712.65,0.00011682,2]
[336065774,1724687443586,-500.0,0.00011682,2]
[336065775,1724687443596,-1161.5,0.00011682,2]
[336065776,1724687443605,-625.79,0.00011682,2]
[336065777,1724687443615,-790.25,0.00011682,2]
[336065778,1724687443625,-598.07,0.00011682,2]
[336065779,1724687443635,-500.0,0.00011682,2]
[336065780,1724687443645,-620.06,0.00011682,2]
[336065781,1724687443654,-1088.77,0.00011682,2]
[336065782,1724687443664,-727.66,0.00011682,2]
[336065783,1724687443674,-500.0,0.00011682,2]
[336065784,1724687443683,-15541.19,0.00011682,2]
[336065785,1724687443693,-500.0,0.00011682,2]
[336065786,1724687443702,-500.0,0.00011682,2]
[336065787,1724687443712,-736.83,0.00011682,2]
[336065788,1724687443721,-834.47,0.00011682,2]
[336065789,1724687443730,-500.0,0.00011682,2]
[336065790,1724687443740,-851.72,0.00011682,2]
[336065791,1724687443749,-500.0,0.00011682,2]
[336065792,1724687443758,-524.53,0.00011682,2]
[336065793,1724687443767,-500.0,0.00011682,2]
[336065794,1724687443777,-855.53,0.00011682,2]
[336065795,1724687443786,-500.0,0.00011682,2]
[336065796,1724687443796,-500.0,0.00011682,2]
[336065797,1724687443807,-500.0,0.00011682,2]
[336065798,1724687443818,-500.0,0.00011682,2]
[336065799,1724687443827,-500.0,0.00011682,2]
[336065800,1724687443837,-500.0,0.00011682,2]
[336065801,1724687443848,-500.0,0.00011682,2]
[336065802,1724687443858,-500.0,0.00011682,2]
[336065803,1724687443868,-500.0,0.00011682,2]
[336065804,1724687443877,-500.0,0.00011682,2]
[336065805,1724687443886,-500.0,0.00011682,2]
[336065806,1724687443896,-853.96,0.00011682,2]
[336065807,1724687443905,-500.0,0.00011682,2]
[336065808,1724687443915,-500.0,0.00011682,2]
[336065809,1724687443925,-500.0,0.00011682,2]
[336065810,1724687443937,-500.0,0.00011682,2]
[336065811,1724687443948,-500.0,0.00011682,2]
[336065812,1724687443959,-564.09,0.00011682,2]
[336065813,1724687443969,-500.0,0.00011682,2]
[336065814,1724687443979,-629.0,0.00011682,2]
[336065815,1724687443988,-674.37,0.00011683,2]
[336065816,1724687443998,-500.0,0.00011683,2]
[336065817,1724687444007,-500.0,0.00011683,2]
[336065818,1724687444017,-500.0,0.00011683,2]
[336065819,1724687444026,-793.25,0.00011683,2]
[336065820,1724687444037,-297.76240184,0.00011683,2]
[336065821,1724687444047,-500.0,0.00011683,2]
[336065822,1724687444056,-500.0,0.00011683,2]
[336065823,1724687444065,-500.0,0.00011683,2]
[336065824,1724687444132,-500.0,0.00011683,2]
[336065825,1724687444141,-500.0,0.00011683,2]
[336065826,1724687444151,-500.0,0.00011683,2]
[336065827,1724687444160,-500.0,0.00011683,2]
[336065828,1724687444170,-921.83,0.00011683,2]
[336065829,1724687444179,-500.0,0.00011683,2]
[336065830,1724687444188,-625.47,0.00011683,2]
[336065831,1724687444198,-500.0,0.00011683,2]
[336065832,1724687444208,-500.0,0.00011683,2]
[336065833,1724687444217,-510.12,0.00011683,2]
[336065834,1724687444226,-500.0,0.00011683,2]
[336065835,1724687444235,-500.0,0.00011683,2]
[336065836,1724687444244,-500.0,0.00011683,2]
[336065837,1724687444254,-500.0,0.00011683,2]
[336065838,1724687444263,-673.97,0.00011683,2]
[336065839,1724687444273,-500.0,0.00011683,2]
[336065840,1724687444285,-520.42,0.00011683,2]
[336065841,1724687444295,-500.0,0.00011683,2]
[336065842,1724687444305,-516.77,0.00011683,2]
[336065843,1724687444314,-500.0,0.00011683,2]
[336065844,1724687444325,-500.0,0.00011683,2]
[336065845,1724687444334,-500.0,0.00011683,2]
[336065846,1724687444343,-500.0,0.00011683,2]
[336065847,1724687444354,-576.77,0.00011683,2]
[336065848,1724687444364,-500.0,0.00011683,2]
[336065849,1724687444373,-500.0,0.00011683,2]
[336065850,1724687444383,-501.25,0.00011683,2]
[336065851,1724687444392,-654.78,0.00011683,2]
[336065852,1724687444403,-500.0,0.00011683,2]
[336065853,1724687444412,-678.05,0.00011683,2]
[336065854,1724687444422,-500.0,0.00011683,2]
[336065855,1724687444431,-506.67,0.00011683,2]
[336065856,1724687444440,-500.0,0.00011683,2]
[336065857,1724687444449,-500.0,0.00011683,2]
[336065858,1724687444458,-500.0,0.00011683,2]
[336065859,1724687444467,-581.08,0.00011683,2]
[336065860,1724687444477,-556.25,0.00011683,2]
[336065861,1724687444487,-500.0,0.00011683,2]
[336065862,1724687444496,-672.85,0.00011683,2]
[336065863,1724687444506,-500.0,0.00011683,2]
[336065864,1724687444516,-500.0,0.00011683,2]
[336065865,1724687444525,-500.0,0.00011683,2]
[336065866,1724687444537,-549.09,0.00011683,2]
[336065867,1724687444547,-500.0,0.00011683,2]
[336065868,1724687444556,-500.0,0.00011683,2]
[336065869,1724687444566,-975.88,0.00011683,2]
[336065870,1724687444576,-500.0,0.00011683,2]
[336065871,1724687444585,-500.0,0.00011683,2]
[336065872,1724687444594,-500.0,0.00011683,2]
[336065873,1724687444603,-500.0,0.00011683,2]
[336065874,1724687444612,-500.0,0.00011683,2]
[336065875,1724687444621,-502.75,0.00011683,2]
[336065876,1724687444631,-886.96,0.00011683,2]
[336065877,1724687444639,-500.0,0.00011683,2]
[336065878,1724687444649,-728.04,0.00011683,2]
[336065879,1724687444658,-500.0,0.00011683,2]
[336065880,1724687444667,-537.46,0.00011683,2]
[336065881,1724687444676,-789.79,0.00011683,2]
[336065882,1724687444685,-613.5,0.00011683,2]
[336065883,1724687444694,-500.0,0.00011683,2]
[336065884,1724687444703,-500.0,0.00011683,2]
[336065885,1724687444712,-500.0,0.00011683,2]
[336065886,1724687444722,-500.0,0.00011683,2]
[336065887,1724687444731,-500.0,0.00011683,2]
[336065888,1724687444740,-500.0,0.00011683,2]
[336065889,1724687444749,-750.29,0.00011683,2]
[336065890,1724687444758,-500.0,0.00011683,2]
[336065891,1724687444767,-500.0,0.00011683,2]
[336065892,1724687444776,-500.0,0.00011683,2]
[336065893,1724687444789,-500.0,0.00011683,2]
[336065894,1724687444799,-500.0,0.00011683,2]
[336065895,1724687444808,-500.0,0.00011683,2]
[336065896,1724687444818,-500.0,0.00011683,2]
[336065897,1724687444827,-500.0,0.00011683,2]
[336065898,1724687444836,-500.0,0.00011683,2]
[336065899,1724687444845,-500.0,0.00011683,2]
[336065900,1724687444855,-500.0,0.00011683,2]
[336065901,1724687444864,-500.0,0.00011683,2]
[336065902,1724687444873,-638.78,0.00011683,2]
[336065903,1724687444883,-500.0,0.00011683,2]
[336065904,1724687444892,-510.05,0.00011683,2]
[336065905,1724687444901,-500.0,0.00011683,2]
[336065906,1724687444910,-649.14,0.00011683,2]
[336065907,1724687444920,-744.0,0.00011683,2]
[336065908,1724687444930,-500.0,0.00011683,2]
[336065909,1724687444941,-501.26,0.00011683,2]
[336065910,1724687444952,-500.15,0.00011683,2]
[336065911,1724687444963,-680.95188771,0.00011712,2]
[336065912,1724687444972,-538.65784774,0.00011712,2]
[336065913,1724687444981,-7016.80902756,0.00011712,2]
[336065914,1724687444991,-196.8641712,0.00011712,2]
[336065915,1724687445000,-1057.54478736,0.00011719,2]
[336065916,1724687445009,-500.0,0.00011779,2]
[336065917,1724687445019,-500.0,0.00011779,2]
[336065918,1724687445028,-755.96,0.00011779,2]
[336065919,1724687445039,-500.0,0.00011779,2]
[336065920,1724687445048,-500.0,0.00011779,2]
[336065921,1724687445058,-500.0,0.00011779,2]
[336065922,1724687445067,-706.58,0.00011779,2]
[336065923,1724687445076,-780.86,0.00011779,2]
[336065924,1724687445085,-500.0,0.00011779,2]
[336065925,1724687445094,-521.1,0.00011779,2]
[336065926,1724687445104,-557.76,0.00011779,2]
[336065927,1724687445113,-500.0,0.00011779,2]
[336065928,1724687445122,-500.0,0.00011779,2]
[336065929,1724687445132,-500.0,0.00011779,2]
[336065930,1724687445141,-500.0,0.00011779,2]
[336065931,1724687445150,-500.0,0.00011779,2]
[336065932,1724687445160,-500.0,0.00011779,2]
[336065933,1724687445169,-500.0,0.00011779,2]
[336065934,1724687445179,-500.0,0.00011779,2]
[336065935,1724687445188,-500.0,0.00011779,2]
[336065936,1724687445197,-500.0,0.00011779,2]
[336065937,1724687445207,-613.89,0.00011779,2]
[336065938,1724687445216,-500.0,0.00011779,2]
[336065939,1724687445225,-853.82,0.00011779,2]
[336065940,1724687445235,-535.38,0.00011779,2]
[336065941,1724687445244,-500.0,0.00011779,2]
[336065943,1724687445254,-1583.53,0.00011779,2]
[336065946,1724687445265,-500.0,0.00011779,2]
[336065948,1724687445279,-537.13,0.00011779,2]
[336065949,1724687445292,-500.0,0.00011779,2]
[336065951,1724687445302,-500.0,0.00011779,2]
[336065952,1724687445312,-500.0,0.00011779,2]
[336065953,1724687445323,-500.0,0.00011779,2]
[336065954,1724687445332,-511.94,0.00011779,2]
[336065955,1724687445342,-742.18,0.00011779,2]
[336065956,1724687445353,-869.31,0.00011779,2]
[336065957,1724687445365,-547.01,0.00011779,2]
[336065958,1724687445375,-500.0,0.00011779,2]
[336065959,1724687445385,-512.88,0.00011779,2]
[336065960,1724687445395,-500.0,0.00011779,2]
[336065961,1724687445404,-1044.45,0.00011779,2]
[336065962,1724687445414,-500.0,0.00011779,2]
[336065963,1724687445424,-951.92,0.00011779,2]
[336065964,1724687445433,-2455.13,0.00011779,2]
[336065965,1724687445443,-500.0,0.00011779,2]
[336065966,1724687445457,-682.62,0.00011779,2]
[336065968,1724687445466,-687.55,0.00011779,2]
[336065969,1724687445476,-500.0,0.00011779,2]
[336065970,1724687445486,-555.77,0.00011779,2]
[336065971,1724687445495,-544.83,0.00011779,2]
[336065972,1724687445505,-500.0,0.0001178,2]
[336065973,1724687445515,-500.0,0.0001178,2]
[336065974,1724687445525,-500.0,0.0001178,2]
[336065975,1724687445537,-528.99691238,0.0001178,2]
[336065976,1724687445546,-847.63,0.0001178,2]
[336065977,1724687445555,-500.0,0.0001178,2]
[336065978,1724687445564,-500.0,0.0001178,2]
[336065979,1724687445574,-500.0,0.0001178,2]
[336065980,1724687445584,-500.0,0.0001178,2]
[336065981,1724687445595,-726.78,0.0001178,2]
[336065982,1724687445604,-500.0,0.0001178,2]
[336065983,1724687445614,-500.0,0.0001178,2]
[336065984,1724687445623,-500.0,0.0001178,2]
[336065985,1724687445633,-500.0,0.0001178,2]
[336065986,1724687445643,-652.31,0.0001178,2]
[336065987,1724687445653,-500.0,0.0001178,2]
[336065988,1724687445662,-500.0,0.0001178,2]
[336065989,1724687445672,-500.0,0.0001178,2]
[336065990,1724687445682,-546.98,0.0001178,2]
[336065991,1724687445692,-500.0,0.0001178,2]
[336065992,1724687445702,-500.0,0.0001178,2]
[336065993,1724687445712,-500.0,0.0001178,2]
[336065994,1724687445722,-500.0,0.0001178,2]
[336065995,1724687445732,-500.0,0.0001178,2]
[336065996,1724687445744,-669.36,0.0001178,2]
[336065997,1724687445756,-500.0,0.0001178,2]
[336065998,1724687445768,-500.0,0.0001178,2]
[336065999,1724687445777,-500.0,0.0001178,2]